Cogmind - Beta 16.1 @@@ ROGUE MODE // 2026.04.07 @ 12:46:32 Player: Minty Result: Destroyed by B-75 Beast with Magnetic Acceleration Cannon Performance ------------- Evolutions (4) 2000 Regions Visited (11) 2200 Robots Destroyed (47) 235 Value Destroyed (1966) 1966 Prototype IDs (9) 180 Alien Tech Used (0) 0 Bonus (1098) 1098 TOTAL SCORE: 7679 Bonus ------- Follower Combat Kills 578 Met Imprinter 300 Was Imprinted 300 Friendly Fire -80 Cogmind --------- Core Integrity 0/850 Matter 175/300 Energy 100/100 System Corruption 6% Temperature Cool (12) Movement Core (150) Ox2 Location -6/Extension Parts ------- > --- POWER (1) -------- (None) > --- PROPULSION (4) --- (None) > --- UTILITY (8) ------ Enhanced Optical Array Experimental Sensor Array 0b10 Decoder Chip [Looter] 0b10 Decoder Chip [Scout] 0b10 Decoder Chip [Skirmisher] Salvage Targeting Computer > --- WEAPON (2) ------- Long-range Missile Launcher > --- INVENTORY (5) ---- Mobile Refinery Mk. CCLXVII Hypervelocity Gauss Rifle Bore Cannon Plasma Cutter Peak State ------------ > --- POWER ------------ Zionite Light DM Reactor > --- PROPULSION ------- Gravmag System Combat Airjet Zionite Glidesys I > --- UTILITY ---------- Experimental Heat Sink Small Storage Unit Weight Redist. System Enhanced Optical Array 0b10 Decoder Chip [Looter] 0b10 Decoder Chip [Scout] 0b10 Decoder Chip [Skirmisher] Salvage Targeting Computer > --- WEAPON ----------- Zionite Laser-S Coil Gun > --- INVENTORY -------- Zionite Light DM Reactor Experimental Sensor Array Kinecellerator Mobile Refinery Mk. CCLXVII Heavy Machine Gun Mini Grenade Launcher Plasma Cutter Katana [Rating: 69] Favorites ----------- Power Improved Ion Engine Engine Improved Ion Engine Power Core Light Fission Core Reactor Zionite Light DM Reactor Propulsion Improved Carbon-fiber Leg Treads Light Treads Leg Improved Carbon-fiber Leg Hover Unit Hover Unit Flight Unit VTOL Module Utility Small Storage Unit Device Experimental Sensor Array Storage Small Storage Unit Processor Advanced Visual Processing Unit Hackware Hacking Suite Protection Improved Light Armor Plating Weapon Katana Energy Gun EM Pulse Gun Energy Cannon Light EM Pulse Cannon Ballistic Gun Heavy Machine Gun Launcher Mini Grenade Launcher Special Weapon Plasma Cutter Slashing Weapon Katana Build | -11 -10 -10 -9 -9 -8 -7 -7 -7 -6 -6 -6 ------- Run | Yrd Mat Min Mat Min Mat Fac Low Zio Pro Fac Ext Slots Evolved 8 | . . . 2 . 2 2 . . . 2 . Power . | . . . . . . . . . . . . Propulsion 2 | . . . 1 . . 1 . . . . . Utility 6 | . . . 1 . 2 1 . . . 2 . Weapon . | . . . . . . . . . . . . Parts Attached 87 | . 7 . 2 7 8 12 . 3 3 22 23 Power 10 | . 1 . . 3 . 1 . . 1 2 2 Engine 6 | . 1 . . 3 . 1 . . . . 1 Core 2 | . . . . . . . . . 1 1 . Reactor 2 | . . . . . . . . . . 1 1 Propulsion 28 | . 2 . 1 2 2 5 . 1 . 4 11 Treads 6 | . . . . . . 1 . . . . 5 Leg 8 | . . . . . . 4 . 1 . . 3 Wheel . | . . . . . . . . . . . . Hover 13 | . 2 . 1 2 2 . . . . 4 2 Flight 1 | . . . . . . . . . . . 1 Utility 28 | . 1 . 1 1 2 5 . 1 1 13 3 Device 14 | . . . . 1 . 4 . 1 . 6 2 Storage 1 | . . . . . . . . . . 1 . Processor 8 | . . . . . 2 1 . . . 5 . Hackware 1 | . 1 . . . . . . . . . . Protection 4 | . . . 1 . . . . . 1 1 1 Artifact . | . . . . . . . . . . . . Weapon 21 | . 3 . . 1 4 1 . 1 1 3 7 Energy Gun 4 | . 1 . . . 2 . . . . 1 . Energy Cannon 1 | . . . . . . . . 1 . . . Ballistic Gun 9 | . 1 . . . . . . . 1 2 5 Ballistic Cannon . | . . . . . . . . . . . . Launcher 4 | . . . . 1 1 1 . . . . 1 Special Weapon 2 | . 1 . . . . . . . . . 1 Impact Weapon . | . . . . . . . . . . . . Slashing Weapon 1 | . . . . . 1 . . . . . . Piercing Weapon . | . . . . . . . . . . . . Special Melee Weapon . | . . . . . . . . . . . . Unidentified Prototypes 9 | . . . . 1 1 . . 1 . 6 . Corrupted Parts 3 | . . . . . . . . . 1 1 1 System Corruption 6 | . . . . . . . . . 2 1 3 Parts Lost 45 | . 1 . . . 11 1 . . 2 9 21 Power 6 | . . . . . 2 . . . 1 1 2 Propulsion 20 | . . . . . 7 . . . . 3 10 Utility 8 | . . . . . 1 . . . 1 2 4 Weapon 11 | . 1 . . . 1 1 . . . 3 5 Highest Loss Streak 11 | . 1 . . . 11 1 . . 1 5 9 To Critical Strikes . | . . . . . . . . . . . . Average Backups 6 | . 6 6 6 7 7 5 8 7 8 7 4 Power . | . 1 1 1 2 1 . . . . . . Propulsion . | . 4 5 4 4 3 . . . . . . Utility 3 | . . . . . . 3 6 5 6 3 1 Weapon 1 | . . . . . . . 1 1 1 2 1 Tool/Special . | . . . . . . . . . . . . Unused Backups 16 | . 6 . . 2 1 . . 3 . 1 3 Power 1 | . 1 . . . . . . . . . . Propulsion 7 | . 3 . . 2 1 . . . . . 1 Utility 6 | . 1 . . . . . . 3 . 1 1 Weapon 2 | . 1 . . . . . . . . . 1 Tool/Special . | . . . . . . . . . . . . Average Slot Usage (%) 89 | . 77 100 89 96 88 67 92 99 99 86 83 Engine 5 | . 14 14 11 11 8 6 7 7 1 . 3 Core 1 | . . . . . . . . . 5 5 . Treads 4 | . . . . . . 2 . . . . 15 Leg 15 | . 14 . . . . 12 30 30 30 14 3 Hover 4 | . 12 28 33 33 25 . . . . 3 1 Device 11 | . . . . 9 8 6 15 22 19 7 6 Storage 5 | . 14 14 11 11 9 7 7 7 7 6 . Processor 19 | . . . . . 10 9 15 15 15 29 33 Hackware 2 | . 1 14 11 11 9 7 7 . . . . Protection 1 | . . . 8 1 . . . . 2 3 3 Energy Cannon 1 | . . . . . . . . 6 5 . . Ballistic Gun 5 | . 10 14 11 11 1 . . . 1 9 9 Slashing Weapon 3 | . . . . . . 7 7 7 7 . . Peak Build Rating 69 | . 9 9 12 23 31 37 37 44 46 69 59 Average Rating 41 | . 5 9 11 19 26 23 37 41 44 54 50 On Entrance 23 | 6 6 9 9 11 22 13 37 37 43 46 39 Avg Prop Armor Cover (%) 10 | . . . . . . 11 . . 20 8 9 Naked Turns . | . . . . . . . . . . . . Heaviest Build 30 | 14 14 11 18 19 15 17 16 21 23 30 29 Greatest Support 80 | 20 20 12 18 19 22 56 56 64 64 64 80 Greatest Overweight (x) 2 | . 1 . . 1 2 2 . . 1 1 1 Average Overweight (x) . | . . . . . . . . . . . . Largest Inventory Capacity 8 | . 8 8 8 8 8 8 8 8 8 8 8 Average Capacity 7 | . 8 8 8 8 8 8 8 8 8 8 5 Most Carried 8 | . 8 6 8 8 8 8 8 8 8 8 8 Average Carried 6 | . 5 6 6 7 7 5 8 7 8 7 4 Final Capacity 8 | 8 8 8 8 8 8 8 8 8 8 8 5 Final Carried 8 | 6 6 6 8 8 4 8 8 8 8 8 4 Class Distribution -------------------- 23% | Mutant 20% | Scavenger-Assassin 19% | Scavenger-Mutant 18% | Assassin 11% | Derelict-Mutant Dominant Class ---------------- Mutant | -10/Materials Mutant | -10/Mines Mutant | -9/Materials Mutant | -9/Mines Scout | -8/Materials Mutant | -7/Factory Scavenger-Assassin | -7/Lower Caves Assassin | -7/Zion Scavenger-Assassin | -6/Proximity Caves Derelict-Mutant | -6/Factory Scavenger-Mutant | -6/Extension Resources | -11 -10 -10 -9 -9 -8 -7 -7 -7 -6 -6 -6 ----------- Run | Yrd Mat Min Mat Min Mat Fac Low Zio Pro Fac Ext Matter Collected 1864 | 195 80 . . 134 . 166 139 55 66 594 435 Remotely . | . . . . . . . . . . . . Salvage Created 1604 | . 147 . . . 137 244 121 . 193 405 357 Parts 81 | . 13 . 2 . 8 12 1 . 11 20 14 Haulers Intercepted . | . . . . . . . . . . . . Recyclers Shooed 2 | . . . . . . . . . . 2 . Parts Field Recycled . | . . . . . . . . . . . . Retrieved Matter . | . . . . . . . . . . . . Parts Self-Destructed 9 | . . . . . . . . 1 8 . . Prevented 3 | . . . . . . . . . 3 . . Parts Restored . | . . . . . . . . . . . . Kills | -11 -10 -10 -9 -9 -8 -7 -7 -7 -6 -6 -6 ------- Run | Yrd Mat Min Mat Min Mat Fac Low Zio Pro Fac Ext Combat Hostiles Destroyed 40 | . 4 . . . 6 6 . . 5 10 9 Melee 2 | . . . . . . 2 . . . . . Guns 17 | . 4 . . . . . . . . 7 6 Cannons 1 | . . . . . . . . . 1 . . AOE 19 | . . . . . 6 4 . . 3 3 3 Classes Destroyed 11 | . 4 . . . 1 2 . . 2 1 1 Worker 4 | . 1 . . . 1 . . . . 2 . Builder 1 | . . . . . . 1 . . . . . Operator 2 | . 1 . 1 . . . . . . . . Swarmer 11 | . 2 . . . . . . . 3 6 . Grunt 13 | . 2 . . . 5 5 . . . . 1 Brawler 1 | . . . . . . 1 . . . . . Duelist 1 | . . . . . 1 . . . . . . Sentry 8 | . . . . . . . . . 1 2 5 Hunter 2 | . . . . . . . . . 1 . 1 Programmer 3 | . . . . . . . . . . 2 1 Behemoth 1 | . . . . . . . . . . . 1 Decomposer 3 | . . . . . . . 3 . . . . Best Kill Streak 6 | . 3 . 1 . 6 6 . . 3 5 3 Combat Bots Only 6 | . 2 . . . 5 6 . . 3 4 3 Max Kills in Single Turn 3 | . 1 . 1 . 3 2 1 . 3 2 2 Gunslinging 1 | . . . . . . . . . . 1 . Exploded 3 | . . . . . 3 2 . . 3 2 2 Melee 1 | . . . . . . 1 . . . . . Uniques/NPCs Destroyed . | . . . . . . . . . . . . Combat | -11 -10 -10 -9 -9 -8 -7 -7 -7 -6 -6 -6 -------- Run | Yrd Mat Min Mat Min Mat Fac Low Zio Pro Fac Ext Hostile Shots Fired 703 | . 26 . . 4 61 23 . . 43 202 344 Missed 283 | . 8 . . 1 30 10 . . 16 83 135 Hits 420 | . 18 . . 3 31 13 . . 27 119 209 Melee 1 | . . . . . 1 . . . . . . Projectile 419 | . 18 . . 3 30 13 . . 27 119 209 Critical Strikes 9 | . . . . 1 2 1 . . . 2 3 Part Disruptions 1 | . . . . . . . . . . 1 . Damage Taken 5049 | . 172 8 . 38 564 245 . . 333 1381 2308 Core 1148 | . 7 2 . . 158 80 . . 47 294 560 Absorbed by Shields . | . . . . . . . . . . . . Core Remaining (%) 89 | 100 . 96 . 100 71 . . . 81 . . Volleys Fired 125 | . 18 2 2 . 8 4 . . 12 41 38 Largest 2 | . 2 2 2 . 2 1 . . 1 2 2 Hottest 120 | . 60 120 120 . 93 30 . . 56 90 60 Shots Fired 196 | . 24 4 3 . 12 4 . . 13 72 64 Gun 155 | . 24 2 2 . 5 . . . 2 64 56 Cannon 10 | . . . . . . . . . 10 . . Launcher 27 | . . . . . 7 4 . . 1 8 7 Special 4 | . . 2 1 . . . . . . . 1 Kinetic 136 | . 13 2 2 . . . . . 2 61 56 Thermal 12 | . . 2 1 . 5 . . . . 3 1 Explosive 27 | . . . . . 7 4 . . 1 8 7 Electromagnetic 21 | . 11 . . . . . . . 10 . . Robot Hit Streak 9 | . 5 2 1 . 1 4 . . 5 6 9 Robot Miss Streak 7 | . 3 1 2 . 6 . . . 3 7 3 Penetration Max 1 | . . . . . . . . . . 1 . Secondary Targets 4 | . 1 . . . . . . . . 2 1 Max Gunslinging Chain 1 | . 1 . . . . . . . . 1 1 Shots Hit Robots 114 | . 11 1 1 . 3 9 5 . 8 33 43 Core Hits 101 | . 8 . 1 . 23 12 2 . 10 19 26 Critical Kills 1 | . . . . . . . . . . 1 . Critical Parts Destroyed . | . . . . . . . . . . . . Critical Strikes 3 | . . . . . . 1 . . . 2 . Destroy 2 | . . . . . . . . . . 2 . Sever 1 | . . . . . . 1 . . . . . Melee Attacks 23 | . . . . . . 8 7 2 . 4 2 Impact . | . . . . . . . . . . . . Slashing 23 | . . . . . . 8 7 2 . 4 2 Piercing . | . . . . . . . . . . . . Sneak Attacks 6 | . . . . . . 2 4 . . . . Combat Hostiles . | . . . . . . . . . . . . Follow-up Attacks . | . . . . . . . . . . . . Damage Inflicted 5588 | . 206 31 24 . 1011 588 285 . 341 1141 1961 Guns 1954 | . 203 14 . . . . . . 20 834 883 Cannons 163 | . . . . . . . . . 163 . . Explosions 2920 | . . . . . 1011 402 . . 158 307 1042 Melee 471 | . . . . . . 186 285 . . . . Ramming 46 | . 3 17 . . . . . . . . 26 Kinetic 1796 | . 132 14 . . . . . . 20 747 883 Thermal 121 | . . . 24 . . . . . . 87 10 Explosive 2917 | . . . . . 1011 402 . . 158 304 1042 Electromagnetic 237 | . 71 . . . . . . . 163 3 . Impact . | . . . . . . . . . . . . Slashing 471 | . . . . . . 186 285 . . . . Piercing . | . . . . . . . . . . . . Highest Corruption 6 | . . . . . . . . . 2 1 6 Average Corruption 3 | . . . . . . . . . 2 1 3 Corruption Purged 1 | . . . . . . . . . . 1 . Corruption Blocked . | . . . . . . . . . . . . Effects 25 | . . . . . . . . . 7 1 17 Message Errors 10 | . . . . . . . . . 4 . 6 Matter Fused 2 | . . . . . . . . . . . 2 Heat Flow Errors 3 | . . . . . . . . . 1 . 2 Energy Discharges 4 | . . . . . . . . . 1 1 2 Parts Fused 1 | . . . . . . . . . . . 1 Data Loss (minor) 3 | . . . . . . . . . . . 3 Misfires 1 | . . . . . . . . . 1 . . Weapon Failures 1 | . . . . . . . . . . . 1 Overload Shots . | . . . . . . . . . . . . Overflow Damage 159 | . . . . . 21 37 101 . . . . Projectiles . | . . . . . . . . . . . . Explosions 21 | . . . . . 21 . . . . . . Melee 138 | . . . . . . 37 101 . . . . Knockbacks . | . . . . . . . . . . . . Impact . | . . . . . . . . . . . . Kinetic . | . . . . . . . . . . . . Secondary . | . . . . . . . . . . . . Self-Inflicted Damage 176 | . . 8 . . 58 34 . . 30 46 . Shots 8 | . . . . . 4 1 . . 1 2 . Rammed 6 | . . 3 . . . . . . . . 3 Targets Rammed 8 | . 1 3 . . . . . . . . 4 Kicked 2 | . 1 . . . . . . . . . 1 Crushed . | . . . . . . . . . . . . Highest Temperature 200 | . 16 30 35 19 43 5 . . 176 87 200 Average Temperature 28 | . 5 15 19 12 19 2 . . 50 28 32 Received Heat Transfer 1164 | . 48 . . 39 288 135 . . 30 213 411 Siege Activations . | . . . . . . . . . . . . Martial Activations . | . . . . . . . . . . . . Shielding Activations . | . . . . . . . . . . . . Robots Disrupted . | . . . . . . . . . . . . Combat Hostiles . | . . . . . . . . . . . . Robots Corrupted 1 | . . . . . . . . . 1 . . Combat Hostiles 1 | . . . . . . . . . 1 . . Parts Fried 1 | . . . . . . . . . 1 . . Impact Corruptions . | . . . . . . . . . . . . Robots Melted . | . . . . . . . . . . . . Combat Hostiles . | . . . . . . . . . . . . Parts Melted 1 | . . . . . . . . . . . 1 Heat Transferred 198 | . . . 50 . . . . . . 111 37 Parts Sabotaged . | . . . . . . . . . . . . Parts Stolen . | . . . . . . . . . . . . Parts Stripped . | . . . . . . . . . . . . Power Chain Reactions . | . . . . . . . . . . . . Alert | -11 -10 -10 -9 -9 -8 -7 -7 -7 -6 -6 -6 ------- Run | Yrd Mat Min Mat Min Mat Fac Low Zio Pro Fac Ext Maximum Alert Level 1 | . . . . . 1 . . . . 1 . Low Security (%) 81 | . 100 100 100 100 94 100 . . . 31 100 Level 1 18 | . . . . . 5 . . . . 68 . Level 2 . | . . . . . . . . . . . . Level 3 . | . . . . . . . . . . . . Level 4 . | . . . . . . . . . . . . Level 5 . | . . . . . . . . . . . . High Security . | . . . . . . . . . . . . Max Security . | . . . . . . . . . . . . Peak Influence 311 | . 114 36 5 45 240 148 . . . 311 158 Initial 133 | . . 36 . . 1 35 . . . 53 133 Average 82 | . 50 14 . 19 26 60 . . . 207 40 Influence Increases 2379 | . 174 2 9 45 397 177 5 . 196 799 575 Destroy 0b10 Robot/C 1220 | . 80 . . . 160 120 . . 120 420 320 Destroy 0b10 Robot/NC 50 | . 10 . 5 . 5 5 5 . . 15 5 Destroy Leader 232 | . 20 . . . 30 20 . . 20 100 42 Allied During Kill 212 | . . . . . 9 . . . 56 92 55 Successful Hack 94 | . 34 . 4 . 17 16 . . . 16 7 Disable Machine 240 | . 30 . . . 60 . . . . 75 75 Destroy Structure 181 | . . 2 . . 86 16 . . . 36 41 Partial Spotted 15 | . . . . . 15 . . . . . . Lose Combat Pursuer 135 | . . . . 45 15 . . . . 45 30 Influence Decreases 2291 | . 80 96 9 40 323 163 98 . 110 613 759 Entered New Map 313 | . . 58 . . 4 44 35 . . 33 139 Time Decay 1191 | . 70 38 9 40 71 111 63 . 110 350 329 Lost Part 286 | . 10 . . . 78 8 . . . 90 100 Lost Ally 351 | . . . . . 20 . . . . 140 191 Purge Threat 150 | . . . . . 150 . . . . . . Squads Dispatched 13 | . 2 . 1 . 2 1 . . . 6 1 Investigation 3 | . . . . . 1 1 . . . . 1 Extermination 3 | . . . . . . . . . . 3 . Reinforcement 4 | . 2 . 1 . 1 . . . . . . Assault . | . . . . . . . . . . . . Garrison 3 | . . . . . . . . . . 3 . Intercept . | . . . . . . . . . . . . Searches Triggered . | . . . . . . . . . . . . Construction Impeded . | . . . . . . . . . . . . Haulers Reinforced . | . . . . . . . . . . . . Active Scanning Responses . | . . . . . . . . . . . . Cargo Convoy Interrupts . | . . . . . . . . . . . . Stealth | -11 -10 -10 -9 -9 -8 -7 -7 -7 -6 -6 -6 --------- Run | Yrd Mat Min Mat Min Mat Fac Low Zio Pro Fac Ext Distress Signals 6 | . 2 . . . 3 . . . . . 1 Communications Jammed . | . . . . . . . . . . . . Distress Signals . | . . . . . . . . . . . . Times Spotted 95 | . 13 . 4 3 15 6 . . 6 28 20 Peak Tracking Total 13 | . 5 . 3 3 13 6 . . 4 5 5 Tactical Retreats 6 | . . . . 1 1 . . . . 3 1 Traps | -11 -10 -10 -9 -9 -8 -7 -7 -7 -6 -6 -6 ------- Run | Yrd Mat Min Mat Min Mat Fac Low Zio Pro Fac Ext Traps Triggered 3 | . . . . . . . . . . 3 . Indirectly 1 | . . . . . . . . . . 1 . Trap Hack Attempts . | . . . . . . . . . . . . Triggered . | . . . . . . . . . . . . Disarmed . | . . . . . . . . . . . . Reprogrammed 6 | . . . 6 . . . . . . . . Reused . | . . . . . . . . . . . . Traps Extracted . | . . . . . . . . . . . . Installed . | . . . . . . . . . . . . Triggered . | . . . . . . . . . . . . Objects Rigged 2 | . . . . . . 2 . . . . . Machines | -11 -10 -10 -9 -9 -8 -7 -7 -7 -6 -6 -6 ---------- Run | Yrd Mat Min Mat Min Mat Fac Low Zio Pro Fac Ext Machines Disabled 18 | . 2 . . . 4 . . . . 5 7 Max in Single Turn 4 | . 1 . . . 2 . . . . 4 1 Machines Repaired . | . . . . . . . . . . . . Machines Dismantled 4 | . . . . . . . . . . . 4 Machines Sabotaged . | . . . . . . . . . . . . Overloaded Fab Kills . | . . . . . . . . . . . . Hacking | -11 -10 -10 -9 -9 -8 -7 -7 -7 -6 -6 -6 --------- Run | Yrd Mat Min Mat Min Mat Fac Low Zio Pro Fac Ext Machines Accessed 21 | . 5 . 2 . 7 1 . . . 2 4 Terminals 18 | . 5 . 2 . 5 1 . . . 1 4 Fabricators 1 | . . . . . . . . . . 1 . Repair Stations . | . . . . . . . . . . . . Recycling Units 1 | . . . . . 1 . . . . . . Scanalyzers 1 | . . . . . 1 . . . . . . Garrison Access . | . . . . . . . . . . . . Total Hacks 67 | . 15 . 10 . 25 3 . . . 5 9 Successful 30 | . 8 . 5 . 13 1 . . . 2 1 Failed 36 | . 7 . 5 . 11 2 . . . 3 8 Catastrophic 4 | . 1 . . . . 1 . . . . 2 Database Lockouts 1 | . . . . . 1 . . . . . . Manual 37 | . 11 . 9 . 6 1 . . . 8 2 Terminals 55 | . 15 . 10 . 16 3 . . . 2 9 Fabricators 3 | . . . . . . . . . . 3 . Repair Stations . | . . . . . . . . . . . . Recycling Units 4 | . . . . . 4 . . . . . . Scanalyzers 5 | . . . . . 5 . . . . . . Garrison Access . | . . . . . . . . . . . . Terminal Hacks 14 | . 2 . 2 . 8 . . . . 1 1 Robot Analysis 1 | . . . . . 1 . . . . . . Open Door 2 | . . . . . . . . . . 1 1 Branch Access Points 1 | . . . . . 1 . . . . . . Unreport Threat 1 | . . . . . 1 . . . . . . Locate Traps 4 | . 1 . 1 . 2 . . . . . . Reprogram Traps 1 | . . . 1 . . . . . . . . Hauler Manifests 1 | . . . . . 1 . . . . . . Registered Prototypes 1 | . . . . . 1 . . . . . . Zone Layout 2 | . 1 . . . 1 . . . . . . Fabricator Hacks . | . . . . . . . . . . . . Repair Station Hacks . | . . . . . . . . . . . . Recycling Unit Hacks 2 | . . . . . 2 . . . . . . Process 1 | . . . . . 1 . . . . . . Report Inventory 1 | . . . . . 1 . . . . . . Scanalyzer 3 | . . . . . 3 . . . . . . Retrieve Study 3 | . . . . . 3 . . . . . . Garrison Access Hacks . | . . . . . . . . . . . . Unauthorized Hacks 11 | . 6 . 3 . . 1 . . . 1 . Terminals 10 | . 6 . 3 . . 1 . . . . . Assimilate 1 | . 1 . . . . . . . . . . Botnet 2 | . 1 . 1 . . . . . . . . Detonate 1 | . . . . . . 1 . . . . . Skim 6 | . 4 . 2 . . . . . . . . Fabricators 1 | . . . . . . . . . . 1 . Liberate 1 | . . . . . . . . . . 1 . Repair Stations . | . . . . . . . . . . . . Recycling Units . | . . . . . . . . . . . . Scanalyzers . | . . . . . . . . . . . . Garrison Access . | . . . . . . . . . . . . Data Cores Recovered . | . . . . . . . . . . . . Used . | . . . . . . . . . . . . Hacking Detections 19 | . 5 . 2 . 6 1 . . . 2 3 Full Trace Events 3 | . . . . . 1 1 . . . . 1 Feedback Events . | . . . . . . . . . . . . Feedback Blocked . | . . . . . . . . . . . . Robot Schematics Acquired 3 | . . . . . . . . 3 . . . Robots Built . | . . . . . . . . . . . . Authchips . | . . . . . . . . . . . . Time . | . . . . . . . . . . . . Total Robot Build Rating . | . . . . . . . . . . . . Part Schematics Acquired 13 | . . . . . . . . 13 . . . Parts Built . | . . . . . . . . . . . . Authchips . | . . . . . . . . . . . . Time . | . . . . . . . . . . . . Total Part Build Rating . | . . . . . . . . . . . . Part Studies Acquired 3 | . . . . . 3 . . . . . . Parts Repaired . | . . . . . . . . . . . . Time . | . . . . . . . . . . . . Parts Recycled . | . . . . . . . . . . . . Recycled Matter 8 | . . . . . 8 . . . . . . Retrieved Matter . | . . . . . . . . . . . . Retrieved Components . | . . . . . . . . . . . . Parts Scanalyzed . | . . . . . . . . . . . . Part Schematics Acquired . | . . . . . . . . . . . . Parts Damaged . | . . . . . . . . . . . . Bothacking | -11 -10 -10 -9 -9 -8 -7 -7 -7 -6 -6 -6 ------------ Run | Yrd Mat Min Mat Min Mat Fac Low Zio Pro Fac Ext Used RIF Installer . | . . . . . . . . . . . . Robots Hacked . | . . . . . . . . . . . . Non-combat . | . . . . . . . . . . . . Combat . | . . . . . . . . . . . . Robot Hacks Applied . | . . . . . . . . . . . . Relay Couplers Released . | . . . . . . . . . . . . Fabnet Peak Effective % . | . . . . . . . . . . . . Robots Rewired 7 | . . . . . . . . . . . 7 Allies Hacked . | . . . . . . . . . . . . Hacks Repelled . | . . . . . . . . . . . . Allies | -11 -10 -10 -9 -9 -8 -7 -7 -7 -6 -6 -6 -------- Run | Yrd Mat Min Mat Min Mat Fac Low Zio Pro Fac Ext Total Allies 27 | . . . . 2 . . . 4 . 6 15 Largest Group 7 | . . . . 2 2 . . 4 4 5 7 Highest-Rated Group 210 | . . . . 39 39 . . 162 162 210 206 Highest-Rated Ally 70 | . . . . 31 31 . . 43 43 70 39 Zionite Dispatches 4 | . . . . . . . . . . 3 1 Light 1 | . . . . . . . . . . 1 . Hacker 1 | . . . . . . . . . . 1 . Kinetic Resupply 1 | . . . . . . . . . . 1 . Infowar Resupply 1 | . . . . . . . . . . . 1 Total Orders 2 | . . . . . . . . . . 1 1 DROP 2 | . . . . . . . . . . 1 1 Ally Attacks 148 | . . . . . 11 . . . 3 61 73 Total Damage 2779 | . . . . . 185 . . . 24 1311 1259 Kills 23 | . . . . . 2 . . . 1 12 8 Allies Corrupted . | . . . . . . . . . . . . Allies Melted 2 | . . . . . . . . . . . 2 Intel | -11 -10 -10 -9 -9 -8 -7 -7 -7 -6 -6 -6 ------- Run | Yrd Mat Min Mat Min Mat Fac Low Zio Pro Fac Ext Active Infowar (turns) 4361 | . . . . 103 184 296 238 1108 396 790 1246 Optics 3842 | . . . . . 113 296 238 1108 396 445 1246 Sensors 2532 | . . . . 103 165 44 238 1108 373 88 413 IFF 58 | . . . . . . . . . . 58 . Terrain 1952 | . . . . . . 70 238 1106 373 165 . Structural 30 | . . . . . . 30 . . . . . Decoding 2031 | . . . . . . . . . . 785 1246 Jamming 523 | . . . . . . . . . . . 523 ECM 137 | . . . . . . 132 . . . . 5 Robot Analysis Total 1 | . . . . . 1 . . . . . . Derelict Logs Recovered 2 | . . . . . . . 1 1 . . . Drone Launches . | . . . . . . . . . . . . Drone Recoveries . | . . . . . . . . . . . . Decoded 0b10 Intel 128 | . . . . . . . . . . 87 41 Traps 13 | . . . . . . . . . . 7 6 Emergency Access 10 | . . . . . . . . . . 8 2 Items 76 | . . . . . . . . . . 54 22 Garrisons 1 | . . . . . . . . . . 1 . Patrols 11 | . . . . . . . . . . 6 5 Guards 16 | . . . . . . . . . . 10 6 Exits 1 | . . . . . . . . . . 1 . Exploration | -11 -10 -10 -9 -9 -8 -7 -7 -7 -6 -6 -6 ------------- Run | Yrd Mat Min Mat Min Mat Fac Low Zio Pro Fac Ext Turns Passed 4764 | . 209 114 71 112 184 296 238 1108 396 790 1246 Spaces Moved 3460 | 1 182 175 111 149 262 203 121 850 221 537 648 Core 10 | . . . . . 1 5 . . . . 4 Treads 358 | . . . . . . . . . . . 358 Legs 1947 | 1 72 . . . . 198 121 850 221 316 168 Wheels . | . . . . . . . . . . . . Hover 1140 | . 110 175 111 149 261 . . . . 221 113 Flight 5 | . . . . . . . . . . . 5 Fastest Speed 35 | 120 56 56 52 52 52 120 120 120 120 58 35 Average Speed 103 | 120 81 56 52 52 52 120 120 120 123 100 130 Slowest Speed 190 | 120 120 56 52 116 150 150 120 120 190 131 160 Overloaded Moves . | . . . . . . . . . . . . Propulsion Burnouts . | . . . . . . . . . . . . Robots Hopped 1 | . . . . . . . . . . . 1 Potential Cave-ins 3 | . . . . . 3 . . . . . . Cave-ins Triggered . | . . . . . . . . . . . . Exploration Rate (%) 32 | 2 36 38 22 37 32 5 22 88 51 16 45 Regions Visited 11 Branch Regions 6 Pre-discovered Areas . | . . . . . . . . . . . . Known Exits Taken 1 | . . . . . . . . . . 1 . Unknown Exits Taken 10 | 1 1 1 1 1 1 1 1 1 1 . . Scrap Searched 8 | . . . . 1 . . 1 4 2 . . Spaces Dug 7 | . . 1 . . . . 2 . . 4 . Terrain Destroyed 254 | . . 2 . . 99 15 2 . 8 67 61 Melee 6 | . . . . . . . 2 . . 4 . Projectile 6 | . . 2 . . . . . . . 4 . AOE 242 | . . . . . 99 15 . . 8 59 61 Terrain Rammed . | . . . . . . . . . . . . Walls Destroyed . | . . . . . . . . . . . . Machines Disabled . | . . . . . . . . . . . . Actions | -11 -10 -10 -9 -9 -8 -7 -7 -7 -6 -6 -6 --------- Run | Yrd Mat Min Mat Min Mat Fac Low Zio Pro Fac Ext Total 4315 | . 218 182 118 183 293 234 203 939 330 705 910 Wait 373 | . 2 3 . 15 8 . 76 70 93 59 47 Move 3447 | . 181 174 110 148 261 202 120 849 220 536 646 Hop 1 | . . . . . . . . . . . 1 Pick Up 33 | . 2 . 3 2 1 4 . 6 . 7 8 Fast Attach 46 | . 4 . 1 3 3 9 . 1 2 8 15 Attach 25 | . 2 . 1 . 5 2 . 1 . 6 8 Detach 14 | . 3 . . 2 1 2 . 1 . 4 1 Swap 45 | . 1 . . 6 5 2 . 3 3 17 8 Drop 35 | . 4 . 1 7 1 1 . 6 . 9 6 Fire 125 | . 18 2 2 . 8 4 . . 12 41 38 Melee 23 | . . . . . . 8 7 2 . 4 2 Ram 3 | . . 3 . . . . . . . . . Kick 2 | . 1 . . . . . . . . . 1 Crush 3 | . . . . . . . . . . . 3 Escape Stasis 13 | . . . . . . . . . . 13 . Rewire 95 | . . . . . . . . . . 1 94 Trap . | . . . . . . . . . . . . Miscellaneous 32 | . . . . . . . . . . . 32 Route ------- -11/Scrapyard -10/Materials -10/Mines -9/Materials -9/Mines -8/Materials -7/Factory -7/Lower Caves (discovered 2 exits: Low / [*Zio]) -7/Zion -6/Proximity Caves -6/Factory (discovered 2 exits: *Ext x2) -6/Extension History --------- Turn | Location | Event 1 | -11/Scrapyard | Discovered new exit (range 0) 1 | -11/Scrapyard | Entered Materials 86 | -10/Materials | Discovered new exit (range 14) 210 | -10/Materials | Entered Mines 303 | -10/Mines | Build established: Mutant 317 | -10/Mines | Discovered new exit (range 12) 318 | -10/Mines | Assembled infested the area 324 | -10/Mines | Entered Materials 324 | -9/Materials | Evolved 2 slots: Propulsion x1, Utility x1 386 | -9/Materials | Discovered new exit (range 14) 395 | -9/Materials | Entered Mines 402 | -9/Mines | Found a damaged Exp. Sensor Array with a note attached 404 | -9/Mines | Found Prototype Device 404 | -9/Mines | Identified Exp. Sensor Array 422 | -9/Mines | Received a Rocket Launcher from a helpful Derelict 448 | -9/Mines | Found DCF Scrap (14 items) 499 | -9/Mines | Discovered new exit (range 4) 500 | -9/Mines | Met a Derelict testing a Signal Generator 507 | -9/Mines | Entered Materials 507 | -8/Materials | Accompanied by 2 allies 507 | -8/Materials | Evolved 2 slots: Utility x2 517 | -8/Materials | Led the pair of lost Derelicts to an unsafe place 588 | -8/Materials | Central database locked down 676 | -8/Materials | Discovered new exit (range 16) 691 | -8/Materials | Entered Factory 691 | -7/Factory | Evolved 2 slots: Propulsion x1, Utility x1 722 | -7/Factory | Lost 11 parts (2p7n1u1w) 953 | -7/Factory | Discovered new exit (range 11) 987 | -7/Factory | Entered Lower Caves 1123 | -7/Lower Caves | Identified exit to Lower Caves 1151 | -7/Lower Caves | Build established: Scavenger-Assassin 1215 | -7/Lower Caves | A Derelict revealed a hidden shortcut to a safe place 1225 | -7/Lower Caves | Entered Zion 1291 | -7/Zion | Found Prototype Device 1291 | -7/Zion | Identified Mobile Refinery Mk. CCLXVII 1724 | -7/Zion | Met Imprinter 1746 | -7/Zion | Imprinted 1748 | -7/Zion | Declared Zion's savior 1858 | -7/Zion | Build established: Assassin 1877 | -7/Zion | Given A8's code to call for help 2251 | -7/Zion | Discovered new exit (range 17) 2333 | -7/Zion | Entered Proximity Caves 2333 | -6/Proximity Caves | Accompanied by 4 allies 2559 | -6/Proximity Caves | Attracted the attention of an 0b10 checkpoint 2682 | -6/Proximity Caves | Discovered new exit (range 14) 2729 | -6/Proximity Caves | Entered Factory 2729 | -6/Factory | Accompanied by 4 allies 2729 | -6/Factory | Evolved 2 slots: Utility x2 2730 | -6/Factory | Identified exit to Extension 2796 | -6/Factory | Zion Kinetic Resupply teleported in 2969 | -6/Factory | Zion Hacker squad teleported in 3180 | -6/Factory | Build established: Derelict-Mutant 3274 | -6/Factory | Garrison activated, responded to threat 3375 | -6/Factory | Zion Light squad teleported in 3441 | -6/Factory | Found Prototype Protection 3441 | -6/Factory | Identified Zio. Weapon Casing 3450 | -6/Factory | Lost 3 allies 3519 | -6/Factory | Entered Extension 3524 | -6/Extension | Disrupted transfer network 3529 | -6/Extension | Lost 5 parts (1p1n1u2w) 3568 | -6/Extension | Core integrity fell below 50% 3607 | -6/Extension | Lost 7 parts (4n1u2w) 3682 | -6/Extension | Rescued a captive Derelict 3749 | -6/Extension | Rescued a captive Derelict 3750 | -6/Extension | Rescued a captive Derelict 4077 | -6/Extension | Lost 5 allies 4180 | -6/Extension | Zion Infowar Resupply teleported in 4235 | -6/Extension | Build established: Scavenger-Mutant 4237 | -6/Extension | Rescued a captive Derelict 4238 | -6/Extension | Rescued a captive Derelict 4292 | -6/Extension | Rescued a captive Derelict 4357 | -6/Extension | Rescued a captive Derelict 4699 | -6/Extension | Spotted B-75 Beast 4710 | -6/Extension | Spotted B-75 Beast 4756 | -6/Extension | Core integrity fell below 20% 4761 | -6/Extension | Destroyed B-75 Beast 4765 | -6/Extension | Destroyed by B-75 Beast with Magnetic Acceleration Cannon Last Messages --------------- 04741_ B-75 Beast system corrupted by crushing effect. 04742_ HI-Q32(b) crushed by B-75 Beast. 04742_ HI-Q32(b) destroyed. 04746_ R-10 Processor collects Great Maul. 04747_ Acquired 11 matter. 04748_ Lgt. Treads destroyed. 04751_ Hvy. Machine Gun destroyed. 04751_ Slug penetrates Wall. 04751_ Lgt. Treads destroyed. 04751_ Imp. Deuterium Engine destroyed. 04753_ >> DECODED: Patrol location. 04755_ Y-54 Guardian destroyed. 04759_ Penetrated by Slug. 04759_ Destroyed Med. Reflective Plating. 04760_ The unstable cave ceiling collapses. 04761_ B-75 Beast destroyed. 04761_ H-66 Slayer destroyed. 04761_ Knocked back. 04762_ Acquired 10 matter. 04763_ Y-54 Guardian destroyed. Map ----- +----------------------------------------------------+ | #### ! #?????# T#???????# #T###????# #???? | | ???#######?????# ##???????# #????# #???? | | ???????????????# #????????#############????# #???? | | ???????????????###?????????????????????????# #???? | | ???????????????????????????????????????????#!#???? | | ???????????????????????????????????????????# #???? | | ???????????????????????????????????????????# #???? | | ???????????????????????????????????????????# #???? | | ???????????????????????????????????????????#^#???? | | ???????????????????????????????????????????= ????? | | ???????????????????????????????????????????? ????? | | ???????????????????????????????????????????? ????? | | ???????????????????????????????????????????? ????? | | ???????????????????????????????????????????? ????? | | ???????????????????????????????????????????? ????? | | ???????????????????????????????????????????? ????? | | ???????????????????????????????????????????? ????? | | ????????????????????????????????????????#??? ????? | | ????????????????????????????????????## ## "?? | | ??????????????????????????????????# | | ????????????????????????????##??? | | ############################;### [ % | | = | | %%% BB% | | BB | | @ | | | | ############################;;## | | ????????????????????????????###???? # ? | | ?????????????????????????????????????? ### ??? | | ?????????????????????????????????????????????????? | | ?????????????????????????????????????????????????? | | ?????????????????????????????????????????????????? | | ?????????????????????????????????????????????????? | | ?????????????????????????????????????????????????? | | | | | | | | | | | | | | | | | | | | | | | | | | | | | | | +----------------------------------------------------+ Best States ------------- Heat Dissipation 48 Energy Generation 27 Energy Capacity 700 Matter Stores 300 Matter Capacity 300 Sight Range 22 Robot Scan Range 20 Terrain Scan Range 14 Terrain Scan Density 110 ECM Strength 1 Jamming Range 14 Additional Mass Support 6 Armor Coverage 225 Evasion (%) 55 Recoil Reduction 4 Kinecelleration 30 Salvage Targeting 1 Offensive Hacking 10 Item Schematics ----------------- Matter Compressor | -7/Zion | Archive Gauss Cannon | -7/Zion | Archive Disruptor Cannon | -7/Zion | Archive Antigrav System | -7/Zion | Archive Dynamic Insulation System | -7/Zion | Archive Hvy. Flak Cannon | -7/Zion | Archive Imp. Medium Treads | -7/Zion | Archive Adv. Melee Analysis Suite | -7/Zion | Archive EM Disruption Field | -7/Zion | Archive Imp. Medium Armor Plating | -7/Zion | Archive Remote Datajack | -7/Zion | Archive Imp. Reaction Control System | -7/Zion | Archive Hvy. Laser | -7/Zion | Archive Robot Schematics ------------------ K-01 Serf | -7/Zion | Archive R-06 Scavenger | -7/Zion | Archive D-83 Annihilator | -7/Zion | Archive Fabricated ------------ Nothing Repaired ---------- Nothing Studied --------- Hover Unit | -8/Materials | Hacked Imp. Hover Unit | -8/Materials | Hacked Field Laser | -8/Materials | Hacked Alien Tech Used ----------------- None Achievements -------------- None Challenges ------------ None Game ------ Seed RelayArcsightDevice Manual? 0 Play Time 00:32:51 Cumulative 1299.9 hours Start 2026.04.06 @ 16:19:26 End 2026.04.07 @ 12:46:32 Sessions 3 Manual Loads 0 Difficulty Rogue Special Mode None Game No. 1597 Rogue 1313 Adventurer 124 Explorer 160 Win Type - Total 64 Types 50/0/8/4/1/0/0/1/0/0 Lore% 93 Gallery% 84 Achievement% 70 Wizard Run 0 Options --------- Layout 0 ASCII 0 Keyboard 1 Movement Numpad Keybinds 0 Fullscreen 2 Font 18/X11 Map View 76x50 Zoom Use 0% Tactical HUD 1 Map Filters NONE Filters NONE Steam 1 RUN: f6f40c5e-0765-46d1-b891-aebe37837008